[Event "WYCC 2018 O18"]
[Site "Halkidiki"]
[Date "2018.10.22"]
[Round "4"]
[White "Krstic, Milos"]
[Black "Ranaldi, Lucas"]
[Result "0-1"]
[ECO "B19"]
[WhiteElo "2171"]
[BlackElo "2335"]
[Annotator "NA"]
[PlyCount "100"]
[EventDate "2018.10.20"]
[EventType "swiss"]
[EventCountry "GRE"]
[SourceTitle "playchess.com"]
[Source "ChessBase"]
[SourceQuality "1"]
[TimeControl "40/5400+30:1800+30"]

1. e4 {[%emt 0:00:00]} c6 {[%emt 0:00:18]} 2. d4 {[%emt 0:00:00]} d5 {[%emt 0:00:04]} 3. Nc3 {[%emt 0:00:00]} dxe4 {[%emt 0:00:03]} 4. Nxe4 {[%emt 0:00:00]} Bf5 {[%emt 0:00:06]} 5. Ng3 {[%emt 0:00:00]} Bg6 {[%emt 0:00:04]} 6. h4 {[%emt 0:00:00]} h6 {[%emt 0:00:06]} 7. Nf3 {[%emt 0:00:02]} Nd7 {[%emt 0:00:19]} 8. h5 {[%emt 0:00:05]} Bh7 {[%emt 0:00:03]} 9. Bd3 {[%emt 0:00:04]} Bxd3 {[%emt 0:00:06]} 10. Qxd3 {[%emt 0:00:03]} e6 {[%emt 0:00:08]} 11. Bd2 {[%emt 0:01:12]} Ngf6 {[%emt 0:00:05]} 12. O-O-O {[%emt 0:01:20]} Be7 {[%emt 0:00:06]} 13. Kb1 {[%emt 0:03:08]} Qb6 {[%emt 0:00:45]} 14. Qe2 {[%emt 0:05:07]} O-O {[%emt 0:05:30]} 15. Ne5 $11 {[%emt 0:06:12] LiveBook: 10 Games} Rfd8 {[%emt 0:08:04]} 16. Bc1 {[%emt 0:06:27]} a5 {[%emt 0:06:56]} 17. Ka1 {[%emt 0:41:19]} a4 {[%emt 0:07:05]} 18. a3 {[%emt 0:05:46]} Rac8 {[%emt 0:34:04]} 19. Rhe1 {[%emt 0:04:58]} c5 {[%emt 0:01:33]} 20. Nxd7 {[%emt 0:03:31]} Rxd7 {[%emt 0:00:22]} 21. dxc5 {[%emt 0:00:26]} Qc6 {[%emt 0:10:54]} 22. Rxd7 Nxd7 {[%emt 0:00:11]} 23. Ne4 {[%emt 0:10:50]} Nxc5 {[%emt 0:11:26]} 24. Kb1 {[%emt 0:01:34]} Rd8 {[%emt 0:08:22]} 25. Nxc5 {[%emt 0:05:10]} Qxc5 {[%emt 0:00:17]} 26. g4 {[%emt 0:00:43]} b5 {[%emt 0:00:57]} 27. f3 {[%emt 0:01:57]} b4 {[%emt 0:02:45]} 28. axb4 {[%emt 0:02:18]} Qxb4 {[%emt 0:00:01]} 29. Rd1 {[%emt 0:00:20]} Rb8 {[%emt 0:01:53]} 30. Qe4 {[%emt 0:01:31]} Qb5 {[%emt 0:01:54]} 31. Qd3 {[%emt 0:00:17]} Qb6 {[%emt 0:00:20]} 32. Qd4 {[%emt 0:00:22]} Qb5 {[%emt 0:00:28]} 33. Qd3 {[%emt 0:00:55]} Qb4 {[%emt 0:00:41]} 34. Qd4 {[%emt 0:00:10]} Qa5 {[%emt 0:00:29]} 35. Qf4 {[%emt 0:01:10]} Rb4 {[%emt 0:00:31]} 36. Qe3 {[%emt 0:00:29]} a3 {[%emt 0:00:27]} 37. b3 {[%emt 0:00:30]} Bg5 {[%emt 0:00:31]} 38. Qd3 {[%emt 0:00:23]} a2+ {[%emt 0:00:28]} 39. Ka1 {[%emt 0:00:22]} Rd4 {[%emt 0:00:31]} 40. Qe2 {[%emt 0:00:00]} Bf6 {[%emt 0:00:00]} 41. Bb2 {[%emt 0:01:36]} Rd2 {[%emt 0:12:38]} 42. Qe1 {[%emt 0:03:22]} Rxd1+ {[%emt 0:13:13]} 43. Qxd1 {[%emt 0:00:52]} Bxb2+ {[%emt 0:00:22]} 44. Kxb2 {[%emt 0:00:04]} g6 {[%emt 0:01:57]} 45. hxg6 {[%emt 0:00:23]} fxg6 {[%emt 0:00:05]} 46. b4 {[%emt 0:00:46]} a1=Q+ {[%emt 0:00:49]} 47. Qxa1 {[%emt 0:00:03]} Qxb4+ {[%emt 0:00:22]} 48. Ka2 {[%emt 0:00:08]} Qa4+ {[%emt 0:00:41]} 49. Kb2 {[%emt 0:00:02]} Qxa1+ {[%emt 0:00:29]} 50. Kxa1 {[%emt 0:00:03]} h5 {[%emt 0:00:11]} 0-1

[Event "WYCC 2018 O18"]
[Site "Halkidiki"]
[Date "2018.10.22"]
[Round "4"]
[White "Lindbol, Aleksander"]
[Black "Banzea, Alexandru-Bogdan"]
[Result "1/2-1/2"]
[ECO "B67"]
[WhiteElo "2166"]
[BlackElo "2313"]
[Annotator "NA"]
[PlyCount "59"]
[EventDate "2018.10.20"]
[EventType "swiss"]
[EventCountry "GRE"]
[SourceTitle "playchess.com"]
[Source "ChessBase"]
[SourceQuality "1"]
[TimeControl "40/5400+30:1800+30"]

1. e4 {[%emt 0:00:03]} c5 {[%emt 0:01:47]} 2. Nf3 {[%emt 0:00:21]} d6 {[%emt 0:00:33]} 3. d4 {[%emt 0:00:46]} cxd4 {[%emt 0:00:11]} 4. Nxd4 {[%emt 0:00:06]} Nf6 {[%emt 0:00:11]} 5. Nc3 {[%emt 0:00:15]} Nc6 {[%emt 0:02:31]} 6. Bg5 {[%emt 0:01:41]} e6 {[%emt 0:00:14]} 7. Qd2 {[%emt 0:00:28]} a6 {[%emt 0:01:44]} 8. O-O-O {[%emt 0:00:46]} Bd7 {[%emt 0:00:43]} 9. f4 {[%emt 0:03:08]} h6 {[%emt 0:04:37]} 10. Bxf6 {[%emt 0:05:53]} gxf6 {[%emt 0:00:17]} 11. f5 {[%emt 0:04:42] B63: Sicilian: Richter-Rauzer: 7...Be7 and unusual Black 7th moves} (11. g3 h5 12. Kb1 Qb6 13. Nb3 O-O-O 14. Bh3 Kb8 15. Rhf1 Bc8 16. Qe2 h4 17. Bg4 hxg3 18. hxg3 Rg8 {½-½ (35) Patel,A (2475)-Shabalov,A (2564) Chicago 2018}) 11... h5 {[%emt 0:02:47]} 12. Kb1 {[%emt 0:04:24]} b5 {[%emt 0:02:18]} 13. fxe6 {[%emt 0:25:31]} fxe6 {[%emt 0:00:19]} 14. Nxc6 $146 {[%emt 0:00:39]} ({Predecessor:} 14. g3 Ne5 15. Bh3 Qe7 16. Rhf1 Bh6 17. Qf2 Bg5 18. Nce2 Ng4 19. Bxg4 hxg4 {1-0 (51) Lukasiewicz,A (2129)-Barburzynska,M (1887) Polanica Zdroj 2008}) 14... Bxc6 {[%emt 0:00:15]} 15. Qe3 {[%emt 0:00:13]} Bh6 {[%emt 0:08:23]} 16. Qh3 {[%emt 0:11:54]} Ke7 {[%emt 0:04:16]} 17. Ne2 {[%emt 0:10:04]} e5 {[%emt 0:26:39]} 18. Ng3 {[%emt 0:05:17]} Bd7 {[%emt 0:01:05]} 19. Qxh5 {[%emt 0:03:38]} Qb6 $18 {[%emt 0:07:59]} (19... Bf4 $16 {was called for.} 20. Qf3 Bxg3 21. Qxg3 Rg8) 20. Be2 {[%emt 0:03:40]} Rag8 {[%emt 0:12:46]} 21. Nf5+ {[%emt 0:01:20]} Bxf5 {[%emt 0:01:59]} 22. Qxf5 {[%emt 0:00:05]} Rg5 {[%emt 0:04:51]} 23. Qf3 {[%emt 0:00:17]} Rg6 {[%emt 0:01:15]} 24. Rhf1 {[%emt 0:04:54]} Qe3 {[%emt 0:01:05]} 25. Qf5 {[%emt 0:01:01]} Qg5 {[%emt 0:00:25]} 26. Rxd6 {[%emt 0:05:37]} Kxd6 {[%emt 0:05:34]} 27. Rd1+ {[%emt 0:00:07]} Kc7 {[%emt 0:00:30]} 28. Qd7+ {[%emt 0:02:01]} Kb8 {[%emt 0:00:07]} 29. Qd6+ {[%emt 0:00:52]} Kb7 {[%emt 0:01:02]} 30. Qd7+ {[%emt 0:03:18]} 1/2-1/2

[Event "WYCC 2018 O18"]
[Site "Halkidiki"]
[Date "2018.10.22"]
[Round "4"]
[White "Asllani, Muhamet"]
[Black "Ayats Llobera, Gerard"]
[Result "0-1"]
[ECO "B02"]
[WhiteElo "2148"]
[BlackElo "2399"]
[Annotator "NA"]
[PlyCount "48"]
[EventDate "2018.10.20"]
[EventType "swiss"]
[EventCountry "GRE"]
[SourceTitle "playchess.com"]
[Source "ChessBase"]
[SourceQuality "1"]
[TimeControl "40/5400+30:1800+30"]

1. e4 {[%emt 0:00:00]} Nf6 {[%emt 0:00:00]} 2. Nc3 {[%emt 0:00:44]} d5 {[%emt 0:00:00]} 3. exd5 {[%emt 0:00:24]} Nxd5 {[%emt 0:00:00]} 4. Nf3 {[%emt 0:00:09]} g6 {[%emt 0:03:56]} 5. Bc4 {[%emt 0:00:57] B02: Alekhine's Defence: Chase Variation and lines with early Nc3} (5. g3 Bg7 6. Bg2 Nb6 7. O-O Nc6 8. a4 a5 9. d4 O-O 10. Be3 Bf5 11. Qe2 Nb4 12. Rac1 c6 {1-0 (28) Radjabov,T (2734)-Ivanchuk,V (2704) Beijing 2014}) 5... Nb6 {[%emt 0:01:02]} 6. Bb3 {[%emt 0:00:15]} c5 {[%emt 0:03:17]} 7. Ne5 {[%emt 0:04:33]} e6 {[%emt 0:02:03]} 8. Qf3 {[%emt 0:01:59]} Qe7 $146 {[%emt 0:14:57]} ({Predecessor:} 8... f6 9. Nc4 Bg7 10. Qe3 Nxc4 11. Bxc4 Qe7 12. O-O O-O {1-0 (58) Khatibi,M (2233)-Bahrami Hezaveh,N (2024) Hamedan 2018}) 9. d3 {[%emt 0:16:27]} Bg7 {[%emt 0:01:12]} 10. Bf4 {[%emt 0:01:16]} ({Natürlich nicht} 10. Bg5 f6 $15) 10... O-O {[%emt 0:03:55]} 11. a4 {[%emt 0:06:17]} Rd8 {[%emt 0:14:53]} 12. O-O {[%emt 0:01:18]} N6d7 {[%emt 0:10:57]} 13. Rfe1 {[%emt 0:05:37]} ({White should play} 13. Nc4 $14) 13... Bxe5 {[%emt 0:03:42]} 14. Bxe5 {[%emt 0:00:23]} Nxe5 {[%emt 0:00:24]} 15. Rxe5 {[%emt 0:00:08]} Nc6 {[%emt 0:00:09]} 16. Nd5 {[%emt 0:00:12]} Rxd5 {[%emt 0:00:41]} 17. Rxd5 {[%emt 0:00:40]} exd5 {[%emt 0:00:16]} 18. Bxd5 {[%emt 0:00:05]} Nd4 {[%emt 0:00:20]} 19. Qd1 {[%emt 0:04:54]} Be6 $19 {[%emt 0:00:53]} 20. Bxe6 {[%emt 0:00:05]} Qxe6 {[%emt 0:00:09]} 21. c3 {[%emt 0:00:05]} Nc6 {[%emt 0:00:31]} 22. Qf3 {[%emt 0:00:52]} Re8 {[%emt 0:00:07]} 23. h3 {[%emt 0:00:14]} Qe2 {[%emt 0:00:09]} 24. Qxf7+ {[%emt 0:00:25]} Kxf7 {[%emt 0:00:01]} 0-1

[Event "WYCC 2018 O18"]
[Site "Halkidiki"]
[Date "2018.10.22"]
[Round "4"]
[White "Torres Cueto, Jesus Marcial"]
[Black "Ahmadzada, Ahmad"]
[Result "0-1"]
[ECO "E32"]
[WhiteElo "2078"]
[BlackElo "2343"]
[Annotator "NA"]
[PlyCount "96"]
[EventDate "2018.10.20"]
[EventType "swiss"]
[EventCountry "GRE"]
[SourceTitle "playchess.com"]
[Source "ChessBase"]
[SourceQuality "1"]
[TimeControl "40/5400+30:1800+30"]

1. d4 {[%emt 0:00:00]} Nf6 {[%emt 0:00:00]} 2. c4 {[%emt 0:00:00]} e6 {[%emt 0:00:00]} 3. Nc3 {[%emt 0:00:01]} Bb4 {[%emt 0:00:04]} 4. Qc2 {[%emt 0:00:14]} O-O {[%emt 0:00:14]} 5. a3 {[%emt 0:00:03]} Bxc3+ {[%emt 0:00:06]} 6. Qxc3 {[%emt 0:00:05]} b6 {[%emt 0:00:06]} 7. Nf3 {[%emt 0:00:11]} Bb7 {[%emt 0:00:19]} 8. e3 {[%emt 0:00:12]} d6 {[%emt 0:01:00]} 9. Bd3 {[%emt 0:03:52]} Ne4 {[%emt 0:00:30]} 10. Qc2 {[%emt 0:00:08]} f5 {[%emt 0:00:32]} 11. b4 {[%emt 0:01:30]} Nd7 {[%emt 0:00:47]} 12. Bb2 {[%emt 0:00:18]} Qe7 {[%emt 0:04:48]} 13. O-O {[%emt 0:01:16] E32: Nimzoindisch (4.Dc2)} Ng5 {[%emt 0:02:30]} 14. Nxg5 {[%emt 0:02:18]} Qxg5 {[%emt 0:00:09]} 15. e4 $146 {[%emt 0:00:09]} ({Vorgänger:} 15. f4 Qe7 16. Rae1 Nf6 17. d5 exd5 18. Bxf5 dxc4 19. e4 Bc8 20. Bxc8 Raxc8 21. e5 dxe5 22. Qxc4+ {0-1 (57) Przezdziecka,M (2278)-Berczes,D (2551) Warsaw 2010}) 15... Nf6 {[%emt 0:04:47]} 16. f4 {[%emt 0:00:52]} Qh6 {[%emt 0:02:22]} 17. exf5 {[%emt 0:04:04]} Ng4 {[%emt 0:00:41]} 18. g3 {[%emt 0:00:22]} Ne3 {[%emt 0:00:42]} 19. Qf2 {[%emt 0:00:21]} Nxf1 {[%emt 0:00:51]} 20. Rxf1 {[%emt 0:00:02]} exf5 {[%emt 0:00:20]} 21. d5 {[%emt 0:00:13]} c6 {[%emt 0:01:11]} 22. Re1 {[%emt 0:01:25]} Rae8 {[%emt 0:03:05]} 23. Rd1 {[%emt 0:07:35]} (23. Rxe8 $17 Rxe8 24. Bxf5) 23... Qh5 {[%emt 0:06:07]} 24. Rd2 {[%emt 0:00:34]} Qf7 {[%emt 0:00:25]} 25. Qd4 {[%emt 0:05:59]} cxd5 {[%emt 0:01:23]} 26. cxd5 {[%emt 0:00:13]} Re1+ {[%emt 0:02:07]} 27. Kf2 {[%emt 0:03:52]} Rh1 {[%emt 0:00:25]} 28. Bf1 {[%emt 0:01:13]} Rxh2+ {[%emt 0:00:30]} 29. Bg2 {[%emt 0:00:01]} Qe7 {[%emt 0:02:03]} 30. Kg1 {[%emt 0:05:49]} Rh6 {[%emt 0:00:12]} 31. Bf1 {[%emt 0:00:30]} Rg6 {[%emt 0:00:53]} 32. Kf2 {[%emt 0:00:57]} Qe4 {[%emt 0:02:55]} 33. Bg2 {[%emt 0:01:25]} Qe7 {[%emt 0:02:05]} 34. Re2 {[%emt 0:00:46]} Qd7 {[%emt 0:00:41]} 35. Bf3 {[%emt 0:01:27]} Ba6 {[%emt 0:01:22]} 36. Re6 {[%emt 0:00:35]} Rc8 {[%emt 0:05:50]} 37. g4 {[%emt 0:09:02]} Rc4 {[%emt 0:05:13]} 38. Qe3 {[%emt 0:00:28]} Rxe6 {[%emt 0:03:18]} 39. dxe6 {[%emt 0:00:07]} Qe7 {[%emt 0:00:09]} 40. Kg3 {[%emt 0:00:00]} Rc2 {[%emt 0:00:00]} 41. Bd4 $17 {[%emt 0:13:40]} fxg4 {[%emt 0:31:01]} 42. Bxg4 {[%emt 0:01:54]} Bb7 {[%emt 0:15:18]} 43. Be2 {[%emt 0:02:34]} Ba8 {[%emt 0:10:31]} 44. Bh5 {[%emt 0:18:18]} g6 {[%emt 0:02:33]} 45. Be2 {[%emt 0:00:18]} Qb7 {[%emt 0:01:58]} 46. e7 {[%emt 0:01:12]} Qg2+ {[%emt 0:00:06]} 47. Kh4 {[%emt 0:00:05]} g5+ {[%emt 0:00:24]} 48. Kh5 {[%emt 0:00:10]} Qxe2+ {[%emt 0:00:16]} 0-1

[Event "WYCC 2018 O18"]
[Site "Halkidiki"]
[Date "2018.10.22"]
[Round "4"]
[White "Jimenez Ramallo, Francisco J"]
[Black "Carnicelli, Valerio"]
[Result "0-1"]
[ECO "E63"]
[WhiteElo "2073"]
[BlackElo "2299"]
[Annotator "NA"]
[PlyCount "92"]
[EventDate "2018.10.20"]
[EventType "swiss"]
[EventCountry "GRE"]
[SourceTitle "playchess.com"]
[Source "ChessBase"]
[SourceQuality "1"]
[TimeControl "40/5400+30:1800+30"]

1. d4 {[%emt 0:00:00]} Nf6 {[%emt 0:00:00]} 2. c4 {[%emt 0:00:00]} g6 {[%emt 0:00:03]} 3. g3 {[%emt 0:00:00]} Bg7 {[%emt 0:00:06]} 4. Bg2 {[%emt 0:00:00]} O-O {[%emt 0:00:04]} 5. Nc3 {[%emt 0:00:03]} d6 {[%emt 0:00:18]} 6. Nf3 {[%emt 0:00:08]} Nc6 {[%emt 0:00:12]} 7. O-O {[%emt 0:00:18]} a6 {[%emt 0:00:07]} 8. b3 {[%emt 0:00:20]} Rb8 9. d5 {[%emt 0:04:00]} Na5 {[%emt 0:05:51] E63: King's Indian: Fianchetto: Panno Variation with 7...a6} 10. Bg5 {[%emt 0:00:18]} (10. Bd2 c5 11. dxc6 Nxc6 12. Qc1 Bd7 13. Bh6 b5 14. Bxg7 Kxg7 15. cxb5 axb5 16. Qb2 Kg8 17. b4 Qb6 18. Rfd1 Rfc8 {½-½ (77) Inarkiev,E (2689)-Zhao,J (2604) Riadh 2017}) 10... b5 {[%emt 0:01:00]} 11. cxb5 {[%emt 0:20:30]} axb5 {[%emt 0:00:07]} 12. b4 {[%emt 0:00:16]} Nc4 {[%emt 0:00:21]} 13. Rc1 {[%emt 0:09:11]} Bd7 {[%emt 0:04:52]} 14. Nd2 $146 {[%emt 0:01:29]} ({Predecessor:} 14. Qb3 e6 15. Nd4 h6 16. Bxf6 Qxf6 17. Rfd1 {½-½ (42) Pechoucek,M (1536)-Timar,Z (2212) IECG email 2003}) 14... h6 {[%emt 0:09:26]} 15. Nxc4 {[%emt 0:01:22]} bxc4 {[%emt 0:00:06]} 16. Bxf6 {[%emt 0:09:13]} exf6 {[%emt 0:00:57]} 17. b5 {[%emt 0:01:57]} f5 {[%emt 0:00:43]} 18. a4 {[%emt 0:00:11]} f4 {[%emt 0:16:11]} 19. Na2 {[%emt 0:08:22]} fxg3 {[%emt 0:00:39]} 20. hxg3 {[%emt 0:00:09]} Ra8 {[%emt 0:01:46]} 21. Nb4 {[%emt 0:03:46]} c3 {[%emt 0:00:33]} 22. Qc2 {[%emt 0:05:18]} h5 {[%emt 0:17:35]} 23. Nc6 {[%emt 0:20:48]} Qg5 {[%emt 0:00:59]} 24. Qe4 {[%emt 0:00:25]} Rfe8 {[%emt 0:00:23]} 25. Qc4 {[%emt 0:00:08]} Qg4 {[%emt 0:01:56]} 26. e4 {[%emt 0:01:12]} h4 $17 {[%emt 0:00:21]} 27. gxh4 {[%emt 0:00:43]} Qxh4 {[%emt 0:02:47]} 28. f4 {[%emt 0:01:33]} Bh3 {[%emt 0:02:14]} 29. Rf3 {[%emt 0:03:45]} Bg4 {[%emt 0:01:01]} 30. Re3 {[%emt 0:02:55]} Bd7 {[%emt 0:10:25]} 31. Rf1 {[%emt 0:03:34]} Bf6 {[%emt 0:02:31]} 32. Rd3 {[%emt 0:02:18]} Kg7 {[%emt 0:00:31]} 33. Nd4 {[%emt 0:01:30]} Rh8 {[%emt 0:04:10]} 34. Rff3 {[%emt 0:00:32]} Qh2+ {[%emt 0:02:39]} 35. Kf1 {[%emt 0:00:01]} Rh4 {[%emt 0:08:24]} 36. e5 dxe5 {[%emt 0:00:30]} 37. Ne6+ {[%emt 0:01:28]} Bxe6 {[%emt 0:00:56]} 38. dxe6 {[%emt 0:00:09]} e4 {[%emt 0:00:35]} 39. Qxe4 {[%emt 0:00:51]} c2 {[%emt 0:00:08]} 40. Qc4 {[%emt 0:00:00]} Rxa4 {[%emt 0:00:00]} 41. Qxc2 {[%emt 0:03:01]} Ra1+ {[%emt 0:00:48]} 42. Rd1 {[%emt 0:00:30]} Bd4 {[%emt 0:00:47]} 43. Rxa1 {[%emt 0:02:23]} Qg1+ {[%emt 0:00:13]} 44. Ke2 {[%emt 0:00:06]} Qxg2+ {[%emt 0:00:07]} 45. Kd3 {[%emt 0:00:06]} Qxf3+ {[%emt 0:00:38]} 46. Kxd4 {[%emt 0:00:23]} Qxf4+ {[%emt 0:00:03]} 0-1

[Event "WYCC 2018 O18"]
[Site "Halkidiki"]
[Date "2018.10.22"]
[Round "4"]
[White "Brewer, Callum D"]
[Black "Pantzar, Milton"]
[Result "0-1"]
[ECO "B00"]
[WhiteElo "2056"]
[BlackElo "2326"]
[Annotator "NA"]
[PlyCount "58"]
[EventDate "2018.10.20"]
[EventType "swiss"]
[EventCountry "GRE"]
[SourceTitle "playchess.com"]
[Source "ChessBase"]
[SourceQuality "1"]
[TimeControl "40/5400+30:1800+30"]

1. e4 {[%emt 0:00:00]} Nc6 {[%emt 0:00:00]} 2. Nf3 {[%emt 0:00:00]} d6 {[%emt 0:00:00]} 3. h3 {[%emt 0:05:08]} Nf6 {[%emt 0:04:41]} 4. Nc3 {[%emt 0:06:09]} g6 {[%emt 0:01:39]} 5. d4 {[%emt 0:01:19]} Bg7 {[%emt 0:00:10]} 6. Be3 {[%emt 0:01:35]} O-O {[%emt 0:00:55]} 7. Qd2 {[%emt 0:03:19]} a6 {[%emt 0:06:24] B08: Pirc Defence: Classical System} 8. O-O-O {[%emt 0:14:41]} (8. Bd3 e5 9. d5 Ne7 10. g4 c6 11. dxc6 bxc6 12. O-O-O d5 13. Nxe5 Nxe4 14. Bxe4 Bxe5 15. Bg2 {0-1 (27) Movsesian,S (2647)-Carlsen,M (2837) Riadh 2017}) 8... b5 {[%emt 0:03:00]} 9. e5 {[%emt 0:03:26]} dxe5 {[%emt 0:12:28]} 10. Nxe5 $146 {[%emt 0:02:49]} ({Predecessor:} 10. dxe5 Qxd2+ 11. Rxd2 b4 12. Nd5 Nxd5 13. Rxd5 Nd8 14. Bc4 Nb7 15. Rd2 {1-0 (39) Webb,L (2336)-Evans Quek,S (2295) West Bromwich 2005}) 10... Bb7 {[%emt 0:05:37]} 11. Bh6 {[%emt 0:12:15] [#]} Qxd4 $1 {[%emt 0:04:35]} 12. Nd3 {[%emt 0:07:45]} Rad8 {[%emt 0:12:52]} 13. Be3 {[%emt 0:01:50]} Qd7 {[%emt 0:01:24]} 14. Nc5 {[%emt 0:02:28]} Qxd2+ {[%emt 0:04:41]} 15. Rxd2 {[%emt 0:00:08]} Rxd2 {[%emt 0:03:16]} 16. Bxd2 {[%emt 0:00:03]} Bc8 {[%emt 0:00:10]} 17. a4 {[%emt 0:03:13]} b4 {[%emt 0:01:36]} 18. Nd1 {[%emt 0:02:34]} a5 {[%emt 0:01:18]} 19. g4 $17 {[%emt 0:03:29]} Nd4 {[%emt 0:03:45]} 20. Bg2 {[%emt 0:01:20]} Nd7 {[%emt 0:00:57]} 21. Nxd7 {[%emt 0:02:08]} Bxd7 {[%emt 0:00:11]} 22. b3 {[%emt 0:00:01]} Be6 {[%emt 0:06:10]} 23. Ne3 {[%emt 0:03:57]} Rd8 {[%emt 0:01:58]} 24. Re1 {[%emt 0:01:18]} Bxb3 {[%emt 0:01:59]} 25. Bxb4 {[%emt 0:04:23]} axb4 {[%emt 0:01:45]} 26. cxb3 {[%emt 0:00:02]} Nxb3+ {[%emt 0:00:09]} 27. Kc2 {[%emt 0:00:10]} Nc5 {[%emt 0:02:50]} 28. Nd5 {[%emt 0:00:10]} b3+ {[%emt 0:00:23]} 29. Kb1 {[%emt 0:00:13]} Nxa4 {[%emt 0:02:20]} 0-1

[Event "WYCC 2018 O18"]
[Site "Halkidiki"]
[Date "2018.10.22"]
[Round "4"]
[White "Liang, Albert"]
[Black "Alexiadis, Hristos"]
[Result "0-1"]
[ECO "B91"]
[WhiteElo "2042"]
[BlackElo "2263"]
[Annotator "NA"]
[PlyCount "74"]
[EventDate "2018.10.20"]
[EventType "swiss"]
[EventCountry "GRE"]
[SourceTitle "playchess.com"]
[Source "ChessBase"]
[SourceQuality "1"]
[TimeControl "40/5400+30:1800+30"]

1. e4 {[%emt 0:00:00]} c5 {[%emt 0:00:00]} 2. Nf3 {[%emt 0:00:00]} d6 {[%emt 0:00:06]} 3. d4 {[%emt 0:00:00]} cxd4 {[%emt 0:00:45]} 4. Nxd4 {[%emt 0:00:00]} Nf6 {[%emt 0:00:11]} 5. Nc3 {[%emt 0:00:09]} a6 {[%emt 0:01:30]} 6. g3 {[%emt 0:00:41]} e5 {[%emt 0:00:19]} 7. Nb3 {[%emt 0:00:22]} Be7 {[%emt 0:00:21]} 8. Bg2 {[%emt 0:00:18]} O-O {[%emt 0:00:23]} 9. O-O {[%emt 0:00:14]} Be6 {[%emt 0:01:58]} 10. a4 {[%emt 0:00:38]} Nbd7 {[%emt 0:01:58]} 11. Re1 {[%emt 0:01:46] B91: Sicilian Najdorf: 6 g3} Rc8 {[%emt 0:00:10]} 12. Nd2 {[%emt 0:01:03]} Qa5 {[%emt 0:09:22]} (12... h6 13. Nf1 Re8 14. Ne3 Qc7 15. a5 Nf8 16. Bd2 N8h7 17. h4 Qd7 18. Na4 Bd8 {0-1 (67) Duda,J (2737)-Grischuk,A (2766) chess.com INT 2018}) 13. Nd5 $146 {[%emt 0:11:06]} ({Predecessor:} 13. Nf1 b5 14. Ne3 Rxc3 15. bxc3 Nc5 16. Nf5 Bxf5 17. exf5 Nxa4 18. c4 Qc7 19. cxb5 axb5 {1-0 (32) Mista,A (2613)-Nagy,G (2423) Arad 2014}) 13... Nxd5 {[%emt 0:02:56]} 14. exd5 {[%emt 0:00:08]} Bf5 {[%emt 0:00:09]} 15. c3 {[%emt 0:02:44]} Qc7 {[%emt 0:01:50]} 16. Nf1 {[%emt 0:04:19]} Bg6 {[%emt 0:01:33]} 17. Be3 {[%emt 0:10:07]} Rce8 {[%emt 0:01:33]} 18. Qc1 {[%emt 0:05:59]} Bh5 {[%emt 0:11:01]} 19. c4 {[%emt 0:06:07]} a5 {[%emt 0:04:39]} 20. Qc3 {[%emt 0:05:46]} f5 {[%emt 0:01:27]} 21. f4 {[%emt 0:06:54]} Bf6 {[%emt 0:01:26]} 22. Qc2 {[%emt 0:00:35]} Nc5 {[%emt 0:04:56]} 23. Nd2 {[%emt 0:03:45]} exf4 {[%emt 0:15:03]} 24. gxf4 {[%emt 0:08:36]} Bh4 {[%emt 0:00:08]} 25. Bf2 {[%emt 0:00:10]} Bxf2+ {[%emt 0:00:05]} 26. Kxf2 {[%emt 0:00:04]} Qd8 {[%emt 0:06:37]} 27. Kg1 {[%emt 0:06:37]} Qh4 {[%emt 0:00:09]} 28. Rxe8 {[%emt 0:10:20]} Bxe8 {[%emt 0:00:04]} 29. Rf1 {[%emt 0:01:26]} Qf6 {[%emt 0:00:08]} 30. b3 {[%emt 0:02:22]} Qd4+ {[%emt 0:00:06]} 31. Kh1 {[%emt 0:00:13]} Bh5 {[%emt 0:00:35]} 32. Nb1 $19 {[%emt 0:04:06]} Nd3 {[%emt 0:02:37]} 33. Qd2 {[%emt 0:01:40]} Re8 {[%emt 0:02:20]} 34. Nc3 {[%emt 0:00:42]} Be2 {[%emt 0:02:03]} 35. Nb1 {[%emt 0:03:54]} Bxf1 {[%emt 0:00:39]} 36. Bxf1 {[%emt 0:00:02]} Re1 {[%emt 0:00:32]} 37. Kg2 {[%emt 0:00:51]} Qe4+ {[%emt 0:00:49]} 0-1

[Event "WYCC 2018 O18"]
[Site "Halkidiki"]
[Date "2018.10.22"]
[Round "4"]
[White "Kadianis, Georgios"]
[Black "Kandil, Adham"]
[Result "1-0"]
[ECO "B26"]
[WhiteElo "1928"]
[BlackElo "2292"]
[Annotator "NA"]
[PlyCount "61"]
[EventDate "2018.10.20"]
[EventType "swiss"]
[EventCountry "GRE"]
[SourceTitle "playchess.com"]
[Source "ChessBase"]
[SourceQuality "1"]
[TimeControl "40/5400+30:1800+30"]

1. e4 {[%emt 0:00:00]} c5 {[%emt 0:00:00]} 2. Nc3 {[%emt 0:00:00]} d6 {[%emt 0:00:03]} 3. g3 {[%emt 0:00:07]} g6 {[%emt 0:00:36]} 4. Bg2 {[%emt 0:00:06]} Bg7 {[%emt 0:00:07]} 5. d3 {[%emt 0:00:09]} Nc6 {[%emt 0:00:15]} 6. Be3 {[%emt 0:00:20]} Nd4 {[%emt 0:00:56]} 7. Qd2 {[%emt 0:03:27]} e5 {[%emt 0:02:04]} 8. Nd5 {[%emt 0:14:58]} Be6 {[%emt 0:05:45] B26: Closed Sicilian: 3 g3, lines with early Be3} (8... h6 9. c3 Nc6 10. Ne2 Nge7 11. O-O Nxd5 12. exd5 Ne7 13. f4 exf4 14. Bxf4 g5 15. Be3 O-O 16. d4 {0-1 (70) Short,N (2678)-Mamedov,R (2709) Riadh 2017}) 9. c3 {[%emt 0:00:54]} Bxd5 {[%emt 0:01:09]} 10. cxd4 {[%emt 0:10:54]} cxd4 {[%emt 0:01:12]} 11. Bg5 {[%emt 0:11:54]} f6 {[%emt 0:00:37]} 12. exd5 {[%emt 0:01:53]} fxg5 {[%emt 0:00:06]} 13. Bh3 {[%emt 0:00:27]} Qb6 $146 {[%emt 0:06:11]} ({Predecessor:} 13... Nf6 14. Be6 Nd7 15. Nf3 Nc5 16. Nxg5 {1-0 (40) Lerch,P (2353)-Wirthensohn,H (2396) Germany 2004}) 14. Be6 {[%emt 0:10:53]} g4 {[%emt 0:02:07]} 15. Kf1 {[%emt 0:07:40]} Bh6 {[%emt 0:01:21]} 16. Qc2 {[%emt 0:00:22]} Nf6 {[%emt 0:01:49]} 17. h3 {[%emt 0:04:07]} gxh3 {[%emt 0:02:06]} 18. Rxh3 {[%emt 0:00:06]} Bg7 {[%emt 0:00:04]} 19. Rc1 {[%emt 0:01:50]} Kd8 {[%emt 0:07:20]} 20. Nf3 {[%emt 0:02:08]} Ne8 {[%emt 0:12:34]} 21. Ng5 {[%emt 0:06:37]} Ke7 {[%emt 0:00:47]} 22. Nxh7 {[%emt 0:05:32]} Qa5 {[%emt 0:12:04]} 23. b4 {[%emt 0:02:03]} Qa3 {[%emt 0:02:30]} 24. Qd2 {[%emt 0:01:21]} Bf6 $18 {[%emt 0:02:27]} 25. Nxf6 {[%emt 0:04:34]} Rxh3 {[%emt 0:00:13]} 26. Ng8+ {[%emt 0:01:38]} Kf8 {[%emt 0:00:14]} 27. Bxh3 {[%emt 0:01:31]} Kxg8 {[%emt 0:01:27]} 28. Be6+ {[%emt 0:00:05]} Kg7 {[%emt 0:03:15]} 29. Kg2 {[%emt 0:00:06]} Kf6 {[%emt 0:00:26]} 30. Qh6 {[%emt 0:01:31]} Ng7 {[%emt 0:06:13]} 31. Qh4+ {[%emt 0:00:22]} 1-0